[Event "2nd Namma Bengaluru Open-B 2025"]
[Site "Bengaluru"]
[Date "2025.04.10"]
[Round "1.8"]
[White "Chavan Nameet"]
[Black "Sri Sai Vedaansh P"]
[Result "1/2-1/2"]
[Annotator "NA"]
[ECO "C02"]
[WhiteElo "1901"]
[BlackElo "1571"]
[PlyCount "129"]
[EventDate "2025.04.10"]
[EventType "swiss"]
[EventCountry "IND"]
[SourceTitle "playchess.com"]
[Source "ChessBase"]
[SourceQuality "1"]
[TimeControl "3600+30"]

1. e4 {[%emt 1:01:00]} e6 {[%emt 0:03:00]} 2. d4 {[%emt 0:00:00]} d5 {[%emt 0:01:03]} 3. e5 {[%emt 0:00:00]} Bd7 {[%emt 0:00:05]} 4. Nf3 {[%emt 0:00:00]} a6 {[%emt 0:00:06]} 5. c3 {[%emt 0:00:00]} Bb5 {[%emt 0:00:12]} 6. Nbd2 {[%emt 0:00:00]} Bxf1 {[%emt 0:00:37]} 7. Nxf1 {[%emt 0:00:00]} c5 {[%emt 0:00:13]} 8. Ng3 {[%emt 0:00:00]} Nc6 {[%emt 0:00:30]} 9. O-O {[%emt 0:00:00]} Nge7 {[%emt 0:03:06]} 10. h4 {[%emt 0:00:00]} Qc7 {[%emt 0:02:15]} 11. Re1 {[%emt 0:00:00]} c4 {[%emt 0:05:29]} 12. b4 {[%emt 0:00:00]} b5 {[%emt 0:02:33]} 13. a4 {[%emt 0:00:00]} Rb8 {[%emt 0:02:12]} 14. a5 {[%emt 0:00:00]} g6 {[%emt 0:03:22]} 15. Nh2 {[%emt 0:00:00]} Nf5 {[%emt 0:14:10]} 16. Ng4 {[%emt 0:00:00]} Bg7 {[%emt 0:09:22]} 17. Bg5 {[%emt 0:00:00]} Nce7 {[%emt 0:07:12]} 18. Bf6 {[%emt 0:00:00]} Kd7 {[%emt 0:00:28]} 19. Bxg7 {[%emt 0:00:00]} Nxg7 {[%emt 0:00:02]} 20. Ne3 {[%emt 0:00:12]} Rbf8 {[%emt 0:03:15]} 21. Ng4 {[%emt 0:04:00]} h5 {[%emt 0:01:47]} 22. Nf6+ {[%emt 0:00:04]} Kc6 {[%emt 0:00:05]} 23. Qd2 {[%emt 0:00:21]} Ng8 {[%emt 0:01:55]} 24. Re3 {[%emt 0:03:06]} Nxf6 {[%emt 0:00:34]} 25. exf6 {[%emt 0:00:02]} Nf5 {[%emt 0:00:19]} 26. Nxf5 {[%emt 0:00:04]} gxf5 {[%emt 0:00:03]} 27. Rg3 {[%emt 0:00:07]} Qd8 {[%emt 0:01:12]} 28. Re1 {[%emt 0:01:49]} Qxf6 {[%emt 0:00:39]} 29. Rg5 {[%emt 0:00:01]} Rfg8 {[%emt 0:00:32]} 30. Qf4 {[%emt 0:00:11]} Rxg5 {[%emt 0:01:20]} 31. hxg5 {[%emt 0:00:04]} Qg7 {[%emt 0:00:17]} 32. Re3 {[%emt 0:00:55]} Rg8 {[%emt 0:04:14]} 33. Rg3 {[%emt 0:00:01]} Qg6 {[%emt 0:01:15]} 34. Qh4 {[%emt 0:00:43]} Rh8 {[%emt 0:01:11]} 35. Rh3 {[%emt 0:00:16]} Kd7 {[%emt 0:01:13]} 36. Qf4 {[%emt 0:01:20]} Rg8 {[%emt 0:01:15]} 37. Rg3 {[%emt 0:00:12]} Kc6 {[%emt 0:00:15]} 38. Qh4 {[%emt 0:00:05]} Rh8 {[%emt 0:00:15]} 39. Qf4 {[%emt 0:01:23]} Rg8 {[%emt 0:00:27]} 40. Qh4 {[%emt 0:00:43]} Rh8 {[%emt 0:00:05]} 41. Rh3 {[%emt 0:00:03]} Kd7 {[%emt 0:00:09]} 42. Qf4 {[%emt 0:00:59]} Rg8 {[%emt 0:00:12]} 43. Rg3 {[%emt 0:00:31]} Kc6 {[%emt 0:00:06]} 44. Kh2 {[%emt 0:00:44]} Kd7 {[%emt 0:01:20]} 45. Qh4 {[%emt 0:00:40]} Rh8 {[%emt 0:00:28]} 46. Rh3 {[%emt 0:00:57]} Kc6 {[%emt 0:00:07]} 47. f4 {[%emt 0:00:32]} Qg7 {[%emt 0:00:39]} 48. Qe1 {[%emt 0:00:19]} Kd6 {[%emt 0:00:32]} 49. Qe2 {[%emt 0:00:15]} Ke7 {[%emt 0:02:25]} 50. Rxh5 {[%emt 0:00:34]} Rxh5+ {[%emt 0:00:29]} 51. Qxh5 {[%emt 0:00:06]} Kf8 {[%emt 0:00:07]} 52. Kh3 {[%emt 0:00:31]} Qg6 {[%emt 0:00:42]} 53. Qh8+ {[%emt 0:00:04]} Qg8 {[%emt 0:00:07]} 54. Qh6+ {[%emt 0:01:25]} Qg7 {[%emt 0:00:01]} 55. Kh4 {[%emt 0:02:34]} Kg8 {[%emt 0:00:13]} 56. Kh5 {[%emt 0:00:27]} Qh7 {[%emt 0:00:22]} 57. g3 {[%emt 0:00:49]} Qg7 {[%emt 0:01:33]} 58. Qxg7+ {[%emt 0:00:41]} Kxg7 {[%emt 0:00:01]} 59. g4 {[%emt 0:00:23]} fxg4 {[%emt 0:00:12]} 60. Kxg4 {[%emt 0:00:02]} Kg6 {[%emt 0:00:09]} 61. Kg3 {[%emt 0:00:31]} Kf5 {[%emt 0:01:22]} 62. Kf3 {[%emt 0:00:02]} f6 {[%emt 0:00:22]} 63. gxf6 {[%emt 0:00:02]} Kxf6 {[%emt 0:00:01]} 64. Kg3 {[%emt 0:00:08]} Kf5 {[%emt 0:00:20]} 65. Kf3 {[%emt 0:00:01]} 1/2-1/2

[Event "2nd Namma Bengaluru Open-B 2025"]
[Site "Bengaluru"]
[Date "2025.04.10"]
[Round "1.9"]
[White "Krithin Durai D"]
[Black "Himanshu Ranjan"]
[Result "1-0"]
[Annotator "NA"]
[ECO "E91"]
[WhiteElo "1570"]
[BlackElo "1895"]
[PlyCount "87"]
[EventDate "2025.04.10"]
[EventType "swiss"]
[EventCountry "IND"]
[SourceTitle "playchess.com"]
[Source "ChessBase"]
[SourceQuality "1"]
[TimeControl "3600+30"]

1. d4 {[%emt 0:00:12]} Nf6 {[%emt 0:00:21]} 2. c4 {[%emt 0:00:09]} g6 {[%emt 0:00:19]} 3. Nc3 {[%emt 0:00:37]} Bg7 {[%emt 0:00:05]} 4. e4 {[%emt 0:00:39]} d6 {[%emt 0:00:14]} 5. Nf3 {[%emt 0:00:41]} O-O {[%emt 0:00:10]} 6. Be2 {[%emt 0:01:13]} Bg4 {[%emt 0:00:37]} 7. O-O {[%emt 0:03:59]} Nfd7 {[%emt 0:01:21]} 8. Qb3 {[%emt 0:03:35]} b6 {[%emt 0:07:15]} 9. Be3 {[%emt 0:03:22]} Nc6 {[%emt 0:05:19]} 10. Rad1 {[%emt 0:02:23]} Bxf3 {[%emt 0:02:05]} 11. Bxf3 {[%emt 0:00:11]} e5 {[%emt 0:01:47]} 12. dxe5 {[%emt 0:00:53]} dxe5 {[%emt 0:02:11]} 13. Ne2 {[%emt 0:01:52]} Qe7 {[%emt 0:02:04]} 14. Qa4 {[%emt 0:03:12]} Ndb8 {[%emt 0:04:16]} 15. Nc3 {[%emt 0:01:46]} Nd4 {[%emt 0:01:42]} 16. Nd5 {[%emt 0:02:45]} Qd8 {[%emt 0:01:43]} 17. Bxd4 {[%emt 0:01:28]} exd4 {[%emt 0:01:33]} 18. e5 {[%emt 0:01:43]} c6 {[%emt 0:00:57]} 19. Rxd4 {[%emt 0:03:29]} Bxe5 {[%emt 0:02:13]} 20. Rdd1 {[%emt 0:01:42]} a5 {[%emt 0:11:05]} 21. g3 {[%emt 0:08:43]} cxd5 {[%emt 0:04:03]} 22. Bxd5 {[%emt 0:02:26]} Ra7 {[%emt 0:00:41]} 23. Bxf7+ {[%emt 0:00:14]} Raxf7 {[%emt 0:00:18]} 24. Rxd8 {[%emt 0:00:06]} Rxd8 {[%emt 0:00:15]} 25. c5 {[%emt 0:03:11]} bxc5 {[%emt 0:01:01]} 26. Qxa5 {[%emt 0:00:15]} Rc8 {[%emt 0:00:13]} 27. Qb5 {[%emt 0:02:39]} Bd4 {[%emt 0:00:33]} 28. Kg2 {[%emt 0:01:38]} Rcf8 {[%emt 0:02:50]} 29. f4 {[%emt 0:00:30]} Re7 {[%emt 0:00:41]} 30. b4 {[%emt 0:01:08]} Rc8 {[%emt 0:01:17]} 31. Qc4+ {[%emt 0:01:08]} Kh8 {[%emt 0:00:10]} 32. Rd1 {[%emt 0:00:38]} Rec7 {[%emt 0:01:38]} 33. b5 {[%emt 0:00:23]} Nd7 {[%emt 0:00:31]} 34. Kh3 {[%emt 0:03:30]} Nb6 {[%emt 0:01:45]} 35. Qe6 {[%emt 0:00:25]} Rb7 {[%emt 0:01:00]} 36. a4 {[%emt 0:00:52]} Ra8 {[%emt 0:00:33]} 37. Qc6 {[%emt 0:03:53]} Rbb8 {[%emt 0:00:02]} 38. Re1 {[%emt 0:02:14]} Ra7 {[%emt 0:03:41]} 39. a5 {[%emt 0:00:48]} Nc4 {[%emt 0:04:02]} 40. b6 {[%emt 0:00:00]} Rxa5 {[%emt 0:00:00]} 41. Re8+ {[%emt 0:00:00]} Rxe8 {[%emt 0:00:00]} 42. Qxe8+ {[%emt 0:00:00]} Kg7 {[%emt 0:00:00]} 43. b7 {[%emt 0:00:00]} Nd6 {[%emt 0:00:00]} 44. Qe7+ {[%emt 0:00:00]} 1-0

[Event "2nd Namma Bengaluru Open-B 2025"]
[Site "Bengaluru"]
[Date "2025.04.10"]
[Round "1.10"]
[White "Saranya Devi Narahari"]
[Black "Siddhant Bharti"]
[Result "1-0"]
[Annotator "NA"]
[ECO "B52"]
[WhiteElo "1888"]
[BlackElo "1570"]
[PlyCount "46"]
[EventDate "2025.04.10"]
[EventType "swiss"]
[EventCountry "IND"]
[SourceTitle "playchess.com"]
[Source "ChessBase"]
[SourceQuality "1"]
[TimeControl "3600+30"]

1. e4 {[%emt 0:00:15]} c5 {[%emt 0:00:48]} 2. Nf3 {[%emt 0:00:09]} d6 {[%emt 0:00:22]} 3. Bb5+ {[%emt 0:00:30]} Bd7 {[%emt 0:04:47]} 4. Bxd7+ {[%emt 0:00:24]} Qxd7 {[%emt 0:01:45]} 5. O-O {[%emt 0:00:10]} e6 {[%emt 0:03:09]} 6. Re1 {[%emt 0:00:15]} Nc6 {[%emt 0:00:54]} 7. c3 {[%emt 0:00:44]} Be7 {[%emt 0:02:32]} 8. d4 {[%emt 0:00:58]} cxd4 {[%emt 0:01:17]} 9. cxd4 {[%emt 0:00:10]} Nf6 {[%emt 0:00:47]} 10. Nc3 {[%emt 0:00:22]} a6 {[%emt 0:01:10]} 11. d5 {[%emt 0:02:35]} exd5 {[%emt 0:04:20]} 12. exd5 {[%emt 0:00:22]} Na7 {[%emt 0:01:34]} 13. Qe2 {[%emt 0:00:16]} Nc8 {[%emt 0:01:12]} 14. Nd4 {[%emt 0:07:01]} O-O {[%emt 0:02:51]} 15. a4 {[%emt 0:08:00]} Ng4 {[%emt 0:06:08]} 16. h3 {[%emt 0:01:21]} Ne5 {[%emt 0:01:11]} 17. a5 {[%emt 0:03:28]} Bf6 {[%emt 0:01:47]} 18. Ne4 {[%emt 0:01:10]} Ne7 {[%emt 0:04:03]} 19. Nxf6+ {[%emt 0:19:27]} gxf6 {[%emt 0:01:13]} 20. Bh6 {[%emt 0:04:01]} Rfe8 {[%emt 0:00:58]} 21. Qe4 {[%emt 0:00:48]} f5 {[%emt 0:07:16]} 22. Qh4 {[%emt 0:00:55]} Nxd5 {[%emt 0:03:23]} 23. Rxe5 {[%emt 0:00:23]} Qd8 {[%emt 0:18:33]} 1-0